fUSD/lending_fUSD_20250103
["ID","MTS","AMOUNT","RATE_DAILY","PERIOD"]
[347519983,1735899067561,-7474.49,9.815e-05,2]
[347519984,1735899067570,-524.34332142,9.815e-05,2]
[347519985,1735899067579,-500.0,9.815e-05,2]
[347519986,1735899067590,-1819.72,9.815e-05,2]
[347519987,1735899067601,-1775.49,9.815e-05,2]
[347519988,1735899067611,-235.25975,9.815e-05,2]
[347519989,1735899067620,-500.0,9.815e-05,2]
[347519990,1735899067629,-500.0,9.815e-05,2]
[347519991,1735899067640,-2088.1,9.815e-05,2]
[347519992,1735899067648,-14086.53,9.815e-05,2]
[347519993,1735899067658,-763.38,9.815e-05,2]
[347519994,1735899067668,-3859.73,9.815e-05,2]
[347519995,1735899067677,-500.0,9.815e-05,2]
[347519996,1735899067687,-500.0,9.815e-05,2]
[347519997,1735899067696,-500.0,9.815e-05,2]
[347519998,1735899067706,-500.0,9.815e-05,2]
[347519999,1735899067715,-535.05,9.815e-05,2]
[347520000,1735899067726,-7175.32,9.815e-05,2]
[347520001,1735899067736,-1719.15,9.815e-05,2]
[347520002,1735899067745,-2905.08,9.815e-05,2]
[347520003,1735899067754,-500.0,9.815e-05,2]
[347520004,1735899067764,-2360.19,9.815e-05,2]
[347520005,1735899067773,-4455.38,9.815e-05,2]
[347520006,1735899067783,-2244.11,9.815e-05,2]
[347520007,1735899067793,-500.0,9.815e-05,2]
[347520008,1735899067806,-500.0,9.815e-05,2]
[347520009,1735899067816,-500.0,9.815e-05,2]
[347520010,1735899067825,-1711.57,9.815e-05,2]
[347520011,1735899067834,-816.85,9.815e-05,2]
[347520012,1735899067844,-3203.71,9.815e-05,2]
[347520013,1735899067853,-500.0,9.815e-05,2]
[347520014,1735899067862,-500.0,9.815e-05,2]
[347520015,1735899067872,-633.55,9.815e-05,2]
[347520016,1735899067882,-2965.99,9.815e-05,2]
[347520017,1735899067893,-1540.95,9.815e-05,2]
[347520018,1735899067903,-500.0,9.815e-05,2]
[347520019,1735899067913,-1741.81,9.815e-05,2]
[347520020,1735899067922,-5616.67,9.815e-05,2]
[347520021,1735899067932,-500.0,9.815e-05,2]
[347520022,1735899067942,-3163.14,9.815e-05,2]
[347520023,1735899067951,-909.09,9.815e-05,2]
[347520024,1735899067960,-523.37,9.815e-05,2]
[347520025,1735899067969,-794.13,9.815e-05,2]
[347520026,1735899067978,-5372.13,9.815e-05,2]
[347520027,1735899067988,-763.69,9.815e-05,2]
[347520028,1735899067997,-2063.1,9.816e-05,2]
[347520029,1735899068007,-633.97,9.816e-05,2]
[347520030,1735899068017,-840.72,9.816e-05,2]
[347520031,1735899068026,-3502.47,9.816e-05,2]
[347520032,1735899068035,-500.0,9.816e-05,2]
[347520033,1735899068045,-2694.16,9.816e-05,2]
[347520034,1735899068055,-1883.49,9.816e-05,2]
[347520035,1735899068068,-500.0,9.816e-05,2]
[347520036,1735899068079,-2104.98,9.816e-05,2]
[347520037,1735899068088,-1926.9,9.816e-05,2]
[347520038,1735899068100,-1569.07,9.816e-05,2]
[347520039,1735899068110,-3154.63,9.816e-05,2]
[347520040,1735899068119,-1736.96,9.816e-05,2]
[347520041,1735899068129,-500.0,9.816e-05,2]
[347520042,1735899068139,-3365.63,9.816e-05,2]
[347520043,1735899068150,-500.0,9.816e-05,2]
[347520044,1735899068159,-1739.94,9.816e-05,2]
[347520045,1735899068168,-500.0,9.816e-05,2]
[347520046,1735899068177,-1489.58,9.816e-05,2]
[347520047,1735899068186,-2635.77,9.816e-05,2]
[347520048,1735899068195,-2160.62,9.816e-05,2]
[347520049,1735899068207,-2244.92,9.816e-05,2]
[347520050,1735899068216,-1379.14,9.816e-05,2]
[347520051,1735899068225,-500.0,9.816e-05,2]
[347520052,1735899068234,-2703.1,9.816e-05,2]
[347520053,1735899068243,-2029.09,9.816e-05,2]
[347520054,1735899068253,-500.0,9.816e-05,2]
[347520055,1735899068262,-1449.57,9.816e-05,2]
[347520056,1735899068271,-1020.83,9.816e-05,2]
[347520057,1735899068280,-1828.52,9.816e-05,2]
[347520058,1735899068290,-500.0,9.816e-05,2]
[347520059,1735899068299,-500.0,9.816e-05,2]
[347520060,1735899068308,-1561.95,9.816e-05,2]
[347520061,1735899068317,-1935.63,9.816e-05,2]
[347520062,1735899068327,-1469.42,9.816e-05,2]
[347520063,1735899068335,-1272.33,9.816e-05,2]
[347520064,1735899068345,-502.78828552,9.816e-05,2]
[347520065,1735899068355,-1779.94,9.816e-05,2]
[347520066,1735899068364,-3086.82,9.816e-05,2]
[347520067,1735899068373,-1603.39,9.816e-05,2]
[347520068,1735899068382,-2726.89,9.816e-05,2]
[347520069,1735899068392,-882.99,9.816e-05,2]
[347520070,1735899068402,-2988.14,9.816e-05,2]
[347520071,1735899068411,-1722.33,9.816e-05,2]
[347520072,1735899068420,-1499.24,9.816e-05,2]
[347520073,1735899068429,-1508.0,9.816e-05,2]
[347520074,1735899068439,-1633.43,9.816e-05,2]
[347520075,1735899068449,-2673.16,9.816e-05,2]
[347520076,1735899068458,-971.61,9.816e-05,2]
[347520077,1735899068468,-1545.01,9.816e-05,2]
[347520078,1735899068478,-2426.58,9.816e-05,2]
[347520079,1735899068488,-1055.78,9.816e-05,2]
[347520080,1735899068499,-2097.28,9.816e-05,2]
[347520081,1735899068508,-1785.12,9.816e-05,2]
[347520082,1735899068520,-2481.7,9.816e-05,2]
[347520083,1735899068530,-1593.63,9.816e-05,2]
[347520084,1735899068540,-7413.04,9.816e-05,2]
[347520085,1735899068550,-1854.72,9.816e-05,2]
[347520086,1735899068560,-500.0,9.816e-05,2]
[347520087,1735899068572,-1546.28,9.816e-05,2]
[347520088,1735899068582,-2430.33,9.816e-05,2]
[347520089,1735899068592,-2470.66,9.816e-05,2]
[347520090,1735899068602,-1338.81,9.816e-05,2]
[347520091,1735899068612,-1077.55,9.816e-05,2]
[347520092,1735899068622,-1012.48,9.816e-05,2]
[347520093,1735899068632,-589.65,9.816e-05,2]
[347520094,1735899068642,-1910.52,9.816e-05,2]
[347520095,1735899068652,-1575.88,9.816e-05,2]
[347520096,1735899068662,-1767.14,9.816e-05,2]
[347520097,1735899068672,-3120.72,9.816e-05,2]
[347520098,1735899068682,-1243.07,9.816e-05,2]
[347520099,1735899068691,-628.56,9.816e-05,2]
[347520100,1735899068701,-2098.2,9.816e-05,2]
[347520101,1735899068711,-2396.83,9.816e-05,2]
[347520102,1735899068720,-2077.26,9.816e-05,2]
[347520103,1735899068731,-2305.0,9.816e-05,2]
[347520104,1735899068740,-500.0,9.816e-05,2]
[347520105,1735899068750,-2541.39,9.816e-05,2]
[347520106,1735899068760,-500.0,9.816e-05,2]
[347520107,1735899068769,-10881.93625462,9.816e-05,2]
[347520108,1735899068779,-877.52,9.816e-05,2]
[347520109,1735899068788,-500.0,9.816e-05,2]
[347520110,1735899068798,-891.56,9.816e-05,2]
[347520111,1735899068810,-500.0,9.816e-05,2]
[347520112,1735899068819,-1583.94,9.816e-05,2]
[347520113,1735899068829,-500.0,9.816e-05,2]
[347520114,1735899068838,-1150.46,9.816e-05,2]
[347520115,1735899068847,-953.82,9.816e-05,2]
[347520116,1735899068856,-2730.0,9.816e-05,2]
[347520117,1735899068866,-1534.38,9.816e-05,2]
[347520118,1735899068876,-4408.05,9.816e-05,2]
[347520119,1735899068887,-3531.97,9.816e-05,2]
[347520120,1735899068896,-907.79,9.816e-05,2]
[347520121,1735899068906,-3201.23,9.816e-05,2]
[347520122,1735899068916,-348.73217868,9.817e-05,2]
[347520123,1735899068926,-500.0,9.817e-05,2]
[347520124,1735899068936,-500.0,9.817e-05,2]
[347520125,1735899068946,-1032.62,9.817e-05,2]
[347520126,1735899068956,-1273.71,9.817e-05,2]
[347520127,1735899068966,-500.0,9.817e-05,2]
[347520128,1735899068976,-500.0,9.817e-05,2]
[347520129,1735899068986,-500.0,9.817e-05,2]
[347520130,1735899068996,-642.8,9.817e-05,2]
[347520131,1735899069006,-500.0,9.817e-05,2]
[347520132,1735899069015,-500.0,9.817e-05,2]
[347520133,1735899069026,-500.0,9.817e-05,2]
[347520134,1735899069036,-1321.31,9.817e-05,2]
[347520135,1735899069046,-1443.88,9.817e-05,2]
[347520136,1735899069056,-500.0,9.817e-05,2]
[347520137,1735899069066,-636.04752352,9.817e-05,2]
[347520138,1735899069077,-1441.56,9.817e-05,2]
[347520139,1735899069086,-1131.48,9.817e-05,2]
[347520140,1735899069096,-500.0,9.817e-05,2]
[347520141,1735899069107,-337.78291414,9.817e-05,2]
[347520142,1735899069117,-500.0,9.817e-05,2]
[347520143,1735899069127,-500.0,9.817e-05,2]
[347520144,1735899069137,-439.33220138,9.817e-05,2]
[347520145,1735899069147,-462.30224306,9.817e-05,2]
[347520146,1735899069157,-500.0,9.817e-05,2]
[347520147,1735899069167,-500.0,9.817e-05,2]
[347520148,1735899069176,-500.0,9.817e-05,2]
[347520149,1735899069186,-539.73,9.817e-05,2]
[347520150,1735899069196,-943.53,9.817e-05,2]
[347520151,1735899069207,-795.15,9.817e-05,2]
[347520152,1735899069217,-733.64,9.817e-05,2]
[347520153,1735899069227,-522.39,9.817e-05,2]
[347520154,1735899069237,-678.68,9.817e-05,2]
[347520155,1735899069248,-1252.38,9.817e-05,2]
[347520156,1735899069259,-6525.65,9.817e-05,2]
[347520157,1735899069269,-500.0,9.817e-05,2]
[347520158,1735899069278,-500.0,9.817e-05,2]
[347520159,1735899069288,-585.71,9.817e-05,2]
[347520160,1735899069298,-1544.27,9.817e-05,2]
[347520161,1735899069308,-5808.88,9.817e-05,2]
[347520162,1735899069318,-551.2915856,9.817e-05,2]
[347520163,1735899069328,-540.89,9.817e-05,2]
[347520164,1735899069338,-573.79,9.817e-05,2]
[347520165,1735899069348,-2009.08,9.817e-05,2]
[347520166,1735899069358,-500.0,9.817e-05,2]
[347520167,1735899069369,-10175.48,9.817e-05,2]
[347520168,1735899069380,-1349.59,9.817e-05,2]
[347520169,1735899069390,-500.0,9.817e-05,2]
[347520170,1735899069401,-500.0,9.817e-05,2]
[347520171,1735899069411,-500.0,9.817e-05,2]
[347520172,1735899069423,-815.01,9.817e-05,2]
[347520173,1735899069433,-1470.99,9.817e-05,2]
[347520174,1735899069443,-500.0,9.817e-05,2]
[347520175,1735899069453,-8073.75,9.817e-05,2]
[347520176,1735899069462,-500.0,9.817e-05,2]
[347520177,1735899069472,-500.0,9.817e-05,2]
[347520178,1735899069482,-500.0,9.817e-05,2]
[347520179,1735899069492,-500.0,9.817e-05,2]
[347520180,1735899069501,-199.46862163,9.817e-05,2]
[347520181,1735899069511,-989.46,9.817e-05,2]
[347520182,1735899069521,-500.0,9.817e-05,2]
[347520183,1735899069531,-1117.95,9.817e-05,2]
[347520184,1735899069540,-741.62,9.817e-05,2]
[347520185,1735899069550,-288.67219978,9.817e-05,2]
[347520186,1735899069560,-1147.25,9.817e-05,2]
[347520187,1735899069570,-580.78,9.817e-05,2]
[347520188,1735899069579,-406.24101157,9.817e-05,2]
[347520189,1735899069589,-1180.98,9.817e-05,2]
[347520190,1735899069599,-500.0,9.817e-05,2]
[347520191,1735899069608,-500.0,9.817e-05,2]
[347520192,1735899069619,-500.0,9.817e-05,2]
[347520193,1735899069628,-1324.35,9.817e-05,2]
[347520194,1735899069638,-442.7834899,9.817e-05,2]
[347520195,1735899069647,-852.43,9.817e-05,2]
[347520196,1735899069657,-500.0,9.817e-05,2]
[347520197,1735899069668,-500.0,9.817e-05,2]
[347520198,1735899069679,-822.78,9.817e-05,2]
[347520199,1735899069688,-491.14086502,9.817e-05,2]
[347520200,1735899069698,-790.68,9.817e-05,2]
[347520201,1735899069709,-1625.92,9.817e-05,2]
[347520202,1735899069719,-5308.49,9.817e-05,2]
[347520203,1735899069729,-500.0,9.817e-05,2]
[347520204,1735899069740,-500.0,9.817e-05,2]
[347520205,1735899069750,-828.54,9.817e-05,2]
[347520206,1735899069760,-806.97,9.817e-05,2]
[347520207,1735899069770,-687.88,9.817e-05,2]
[347520208,1735899069780,-829.61,9.817e-05,2]
[347520209,1735899069790,-610.99,9.817e-05,2]
[347520210,1735899069800,-500.0,9.817e-05,2]
[347520211,1735899069813,-508.30756083,9.817e-05,2]
[347520212,1735899069823,-10690.6,9.817e-05,2]
[347520213,1735899069834,-606.33,9.817e-05,2]
[347520214,1735899069844,-1165.73,9.817e-05,2]
[347520215,1735899069855,-575.04,9.817e-05,2]
[347520216,1735899069865,-500.0,9.817e-05,2]
[347520217,1735899069875,-500.0,9.817e-05,2]
[347520218,1735899069886,-500.0,9.817e-05,2]
[347520219,1735899069896,-500.0,9.817e-05,2]
[347520220,1735899069906,-500.0,9.817e-05,2]
[347520221,1735899069916,-1388.52,9.817e-05,2]
[347520222,1735899069926,-516.28,9.817e-05,2]
[347520223,1735899069936,-2092.91,9.817e-05,2]
[347520224,1735899069945,-512.38,9.817e-05,2]
[347520225,1735899069955,-500.0,9.817e-05,2]
[347520226,1735899069965,-500.0,9.817e-05,2]
[347520227,1735899069974,-2516.28,9.817e-05,2]
[347520228,1735899069984,-500.0,9.817e-05,2]
[347520229,1735899069994,-1007.49,9.817e-05,2]
[347520230,1735899070003,-3486.65,9.817e-05,2]
[347520231,1735899070013,-500.0,9.817e-05,2]
[347520232,1735899070023,-913.75,9.817e-05,2]
[347520233,1735899070032,-634.62,9.817e-05,2]
[347520234,1735899070042,-500.0,9.817e-05,2]
[347520235,1735899070052,-500.0,9.817e-05,2]
[347520236,1735899070062,-905.63,9.817e-05,2]
[347520237,1735899070071,-500.0,9.817e-05,2]
[347520238,1735899070082,-1621.99,9.817e-05,2]
[347520239,1735899070091,-500.0,9.817e-05,2]
[347520240,1735899070101,-1629.01,9.817e-05,2]
[347520241,1735899070111,-500.0,9.817e-05,2]
[347520242,1735899070121,-500.0,9.817e-05,2]
[347520243,1735899070132,-669.85,9.817e-05,2]
[347520244,1735899070143,-824.39,9.817e-05,2]
[347520245,1735899070152,-500.0,9.817e-05,2]
[347520246,1735899070163,-500.0,9.817e-05,2]
[347520247,1735899070173,-836.84,9.817e-05,2]
[347520248,1735899070183,-664.81,9.817e-05,2]
[347520249,1735899070193,-673.1,9.817e-05,2]
[347520250,1735899070202,-500.0,9.817e-05,2]
[347520251,1735899070212,-500.0,9.817e-05,2]
[347520252,1735899070222,-500.0,9.817e-05,2]
[347520253,1735899070232,-1595.45,9.817e-05,2]
[347520254,1735899070243,-500.0,9.817e-05,2]
[347520255,1735899070252,-785.12,9.817e-05,2]
[347520256,1735899070262,-603.63,9.817e-05,2]
[347520257,1735899070272,-1779.33,9.817e-05,2]
[347520258,1735899070282,-1071.75,9.817e-05,2]
[347520259,1735899070292,-938.09,9.817e-05,2]
[347520260,1735899070301,-1353.46,9.817e-05,2]
[347520261,1735899070311,-1071.46,9.817e-05,2]
[347520262,1735899070321,-500.0,9.817e-05,2]
[347520263,1735899070331,-713.7,9.817e-05,2]
[347520264,1735899070341,-1422.94,9.817e-05,2]
[347520265,1735899070351,-593.7,9.817e-05,2]
[347520266,1735899070360,-1609.12,9.817e-05,2]
[347520267,1735899070370,-2920.91,9.817e-05,2]
[347520268,1735899070380,-500.0,9.817e-05,2]
[347520269,1735899070390,-2451.94,9.817e-05,2]
[347520270,1735899070400,-1714.79,9.817e-05,2]
[347520271,1735899070410,-500.0,9.817e-05,2]
[347520272,1735899070420,-500.0,9.817e-05,2]
[347520273,1735899070430,-1456.42,9.817e-05,2]
[347520274,1735899070440,-500.0,9.817e-05,2]
[347520275,1735899070451,-500.0,9.817e-05,2]
[347520276,1735899070460,-1419.9,9.817e-05,2]
[347520277,1735899070470,-1068.93,9.817e-05,2]
[347520278,1735899070479,-1288.57,9.817e-05,2]
[347520279,1735899070489,-2262.99,9.817e-05,2]
[347520280,1735899070502,-5075.92,9.817e-05,2]
[347520281,1735899070512,-500.0,9.817e-05,2]
[347520282,1735899070522,-1580.76,9.817e-05,2]
[347520283,1735899070532,-500.0,9.817e-05,2]
[347520284,1735899070541,-500.0,9.817e-05,2]
[347520285,1735899070551,-1076.28,9.817e-05,2]
[347520286,1735899070561,-1094.84,9.817e-05,2]
[347520287,1735899070570,-1851.28,9.817e-05,2]
[347520288,1735899070580,-1346.81,9.817e-05,2]
[347520289,1735899070590,-500.0,9.817e-05,2]
[347520290,1735899070871,-500.0,9.817e-05,2]
[347520291,1735899070881,-500.0,9.817e-05,2]
[347520292,1735899070892,-5395.21,9.817e-05,2]
[347520293,1735899070901,-2187.74,9.817e-05,2]
[347520294,1735899070910,-274.8969523,9.817e-05,2]
[347520295,1735899070921,-1083.27,9.817e-05,2]
[347520296,1735899070931,-281.49865655,9.817e-05,2]
[347520297,1735899070940,-909.34,9.817e-05,2]
[347520298,1735899070951,-991.2,9.817e-05,2]
[347520299,1735899070960,-4382.33,9.817e-05,2]
[347520300,1735899070971,-810.22,9.817e-05,2]
[347520301,1735899070981,-2463.78,9.817e-05,2]
[347520302,1735899070990,-501.49873666,9.817e-05,2]
[347520303,1735899071000,-505.48,9.817e-05,2]
[347520304,1735899071009,-1511.93,9.817e-05,2]
[347520305,1735899071019,-713.42,9.817e-05,2]
[347520306,1735899071028,-681.82,9.817e-05,2]
[347520307,1735899071037,-500.0,9.817e-05,2]
[347520308,1735899071047,-1729.67,9.817e-05,2]
[347520309,1735899071057,-500.0,9.817e-05,2]
[347520310,1735899071067,-1890.41,9.817e-05,2]
[347520311,1735899071077,-861.91,9.817e-05,2]
[347520312,1735899071087,-500.0,9.817e-05,2]
[347520313,1735899071098,-623.27,9.817e-05,2]
[347520314,1735899071108,-2615.61,9.817e-05,2]
[347520315,1735899071118,-500.0,9.817e-05,2]
[347520316,1735899071127,-928.04,9.817e-05,2]
[347520317,1735899071137,-1603.33,9.817e-05,2]
[347520318,1735899071147,-1790.99,9.817e-05,2]
[347520319,1735899071156,-500.0,9.817e-05,2]
[347520320,1735899071166,-1181.17,9.817e-05,2]
[347520321,1735899071176,-900.44,9.817e-05,2]
[347520322,1735899071186,-5029.15,9.817e-05,2]
[347520323,1735899071196,-500.0,9.817e-05,2]
[347520324,1735899071206,-659.5,9.817e-05,2]
[347520325,1735899071216,-500.0,9.817e-05,2]
[347520326,1735899071226,-1537.5,9.817e-05,2]
[347520327,1735899071235,-518.18,9.817e-05,2]
[347520328,1735899071246,-500.0,9.817e-05,2]
[347520329,1735899071255,-1052.56,9.817e-05,2]
[347520330,1735899071264,-1221.8,9.817e-05,2]
[347520331,1735899071275,-1221.9,9.817e-05,2]
[347520332,1735899071285,-703.29,9.817e-05,2]
[347520333,1735899071294,-500.0,9.817e-05,2]
[347520334,1735899071304,-1568.73,9.817e-05,2]
[347520335,1735899071313,-770.89,9.817e-05,2]
[347520336,1735899071323,-2550.83,9.817e-05,2]
[347520337,1735899071333,-2864.54,9.817e-05,2]
[347520338,1735899071343,-500.0,9.817e-05,2]
[347520339,1735899071352,-1309.1,9.817e-05,2]
[347520340,1735899071364,-3808.66,9.817e-05,2]
[347520341,1735899071375,-500.0,9.817e-05,2]
[347520342,1735899071385,-500.0,9.817e-05,2]
[347520343,1735899071395,-619.32,9.817e-05,2]
[347520344,1735899071405,-1171.02,9.817e-05,2]
[347520345,1735899071415,-500.0,9.817e-05,2]
[347520346,1735899071424,-500.0,9.817e-05,2]
[347520347,1735899071434,-8958.03,9.817e-05,2]
[347520348,1735899071444,-500.0,9.817e-05,2]
[347520349,1735899071454,-830.69,9.817e-05,2]
[347520350,1735899071465,-1117.28,9.817e-05,2]
[347520351,1735899071475,-2517.45,9.817e-05,2]
[347520352,1735899071485,-6689.28,9.817e-05,2]
[347520353,1735899071494,-1560.18,9.817e-05,2]
[347520354,1735899071504,-502.94226211,9.817e-05,2]
[347520355,1735899071514,-500.0,9.817e-05,2]
[347520356,1735899071523,-724.73,9.817e-05,2]
[347520357,1735899071535,-1050.38,9.817e-05,2]
[347520358,1735899071545,-1077.33,9.817e-05,2]
[347520359,1735899071555,-500.0,9.817e-05,2]
[347520360,1735899071565,-3636.71,9.817e-05,2]
[347520361,1735899071576,-1529.69,9.817e-05,2]
[347520362,1735899071585,-1098.71,9.817e-05,2]
[347520363,1735899071595,-2285.33,9.817e-05,2]
[347520364,1735899071606,-1913.18,9.817e-05,2]
[347520365,1735899071616,-1082.25,9.817e-05,2]
[347520366,1735899071626,-500.0,9.817e-05,2]
[347520367,1735899071636,-1277.18,9.817e-05,2]
[347520368,1735899071646,-500.0,9.817e-05,2]
[347520369,1735899071655,-1029.72,9.818e-05,2]
[347520370,1735899071665,-502.39077167,9.818e-05,2]
[347520371,1735899071674,-798.98,9.818e-05,2]
[347520372,1735899071684,-882.59,9.818e-05,2]
[347520373,1735899071694,-612.21,9.818e-05,2]
[347520374,1735899071703,-500.0,9.818e-05,2]
[347520375,1735899071713,-500.0,9.818e-05,2]
[347520376,1735899071722,-613.58,9.818e-05,2]
[347520377,1735899071732,-500.0,9.818e-05,2]
[347520378,1735899071742,-595.83,9.818e-05,2]
[347520379,1735899071752,-500.0,9.818e-05,2]
[347520380,1735899071762,-679.99,9.818e-05,2]
[347520381,1735899071772,-500.0,9.818e-05,2]
[347520382,1735899071782,-675.44,9.818e-05,2]
[347520383,1735899071793,-1018.47,9.818e-05,2]
[347520384,1735899071805,-602.59,9.818e-05,2]
[347520385,1735899071818,-500.0,9.818e-05,2]
[347520386,1735899071828,-500.0,9.818e-05,2]
[347520387,1735899071838,-2186.36,9.818e-05,2]
[347520388,1735899071847,-1190.28,9.818e-05,2]
[347520389,1735899071856,-1344.27,9.818e-05,2]
[347520390,1735899071867,-500.0,9.818e-05,2]
[347520391,1735899071878,-1189.45,9.818e-05,2]
[347520392,1735899071888,-500.0,9.818e-05,2]
[347520393,1735899071897,-1005.51,9.818e-05,2]
[347520394,1735899071908,-871.65,9.818e-05,2]
[347520395,1735899071921,-1819.57,9.818e-05,2]
[347520396,1735899071930,-500.0,9.818e-05,2]
[347520397,1735899071940,-634.87601829,9.818e-05,2]
[347520398,1735899071951,-500.0,9.818e-05,2]
[347520399,1735899071963,-500.0,9.818e-05,2]
[347520400,1735899071972,-825.05,9.818e-05,2]
[347520401,1735899071982,-686.33,9.818e-05,2]
[347520402,1735899071992,-1411.86,9.818e-05,2]
[347520403,1735899072002,-500.0,9.818e-05,2]
[347520404,1735899072012,-968.58,9.818e-05,2]
[347520405,1735899072022,-630.92,9.818e-05,2]
[347520406,1735899072031,-1681.53,9.818e-05,2]
[347520407,1735899072042,-500.0,9.818e-05,2]
[347520408,1735899072051,-642.45,9.818e-05,2]
[347520409,1735899072061,-571.21,9.818e-05,2]
[347520410,1735899072071,-1438.18,9.819e-05,2]
[347520411,1735899072081,-1063.23,9.819e-05,2]
[347520412,1735899072091,-946.14,9.819e-05,2]
[347520413,1735899072100,-1612.52,9.819e-05,2]
[347520414,1735899072110,-4413.73,9.819e-05,2]
[347520415,1735899072121,-2563.85,9.819e-05,2]
[347520416,1735899072130,-3868.2,9.819e-05,2]
[347520417,1735899072140,-9530.66,9.819e-05,2]
[347520418,1735899072150,-1104.06,9.819e-05,2]
[347520419,1735899072160,-1616.42,9.819e-05,2]
[347520420,1735899072170,-500.0,9.819e-05,2]
[347520421,1735899072179,-5700.94,9.819e-05,2]
[347520422,1735899072188,-1344.22,9.819e-05,2]
[347520423,1735899072199,-1684.4,9.819e-05,2]
[347520424,1735899072208,-3955.13,9.819e-05,2]
[347520425,1735899072218,-500.0,9.819e-05,2]
[347520426,1735899072228,-3036.34,9.819e-05,2]
[347520427,1735899072237,-2680.62,9.819e-05,2]
[347520428,1735899072248,-2064.58,9.819e-05,2]
[347520429,1735899072258,-2494.75,9.819e-05,2]
[347520430,1735899072267,-2104.05,9.819e-05,2]
[347520431,1735899072277,-1700.0,9.9e-05,3]
[347520432,1735899072287,-4882.48373814,9.976e-05,2]
[347520433,1735899072298,-1259.76636099,9.977e-05,2]
[347520434,1735899072308,-3896.99916312,9.977e-05,2]
[347520435,1735899072318,-2693.55783193,9.977e-05,2]
[347520436,1735899072327,-4355.2309245,9.977e-05,2]
[347520437,1735899072338,-12547.3514674,9.977e-05,2]
[347520438,1735899072347,-3137.56015823,9.977e-05,2]
[347520439,1735899072357,-6026.90117759,9.977e-05,2]
[347520440,1735899072366,-243.24604177,9.978e-05,2]
[347520441,1735899072377,-13895.1001551,9.978e-05,2]
[347520442,1735899072386,-22097.24525002,9.978e-05,2]
[347520443,1735899072396,-243.24604177,9.978e-05,2]
[347520444,1735899072406,-11950.80608496,9.978e-05,2]
[347520445,1735899072416,-13895.1001551,9.978e-05,2]
[347520446,1735899072426,-3137.56015823,9.978e-05,2]
[347520447,1735899072436,-200.0,9.979e-05,2]
[347520448,1735899072446,-34468.49375495,9.979e-05,2]
[347520449,1735899072455,-6026.90117759,9.979e-05,2]
[347520450,1735899072465,-35589.02316671,9.979e-05,2]
[347520451,1735899072474,-1568.78007911,9.979e-05,2]
[347520452,1735899072484,-1568.78007911,9.98e-05,2]
[347520453,1735899072493,-4579.39883277,9.98e-05,2]
[347520454,1735899072504,-24967.56291392,9.981e-05,2]
[347520455,1735899072513,-200.0,9.982e-05,2]
[347520456,1735899072523,-3137.56015823,9.982e-05,2]
[347520457,1735899072532,-34468.49375495,9.982e-05,2]
[347520458,1735899072541,-1568.78007911,9.983e-05,2]
[347520459,1735899072551,-6026.90117759,9.983e-05,2]
[347520460,1735899072560,-3137.56015823,9.983e-05,2]
[347520461,1735899072569,-2693.55783193,9.983e-05,2]
[347520462,1735899072579,-3896.99916312,9.983e-05,2]
[347520463,1735899072589,-200.0,9.984e-05,2]
[347520464,1735899072599,-35589.02316671,9.984e-05,2]
[347520465,1735899072608,-34468.49375495,9.984e-05,2]
[347520466,1735899072618,-13895.1001551,9.985e-05,2]
[347520467,1735899072627,-1259.76636099,9.985e-05,2]
[347520468,1735899072637,-1259.76636099,9.985e-05,2]
[347520469,1735899072647,-1568.78007911,9.985e-05,2]
[347520470,1735899072656,-1502.51642256,9.985e-05,2]
[347520471,1735899072666,-24967.56291392,9.985e-05,2]
[347520472,1735899072675,-243.24604177,9.985e-05,2]
[347520473,1735899072684,-1259.76636099,9.985e-05,2]
[347520474,1735899072694,-24967.56291392,9.986e-05,2]
[347520475,1735899072703,-243.24604177,9.986e-05,2]
[347520476,1735899072713,-3896.99916312,9.986e-05,2]
[347520477,1735899072722,-4579.39883277,9.987e-05,2]
[347520478,1735899072732,-1568.78007911,9.987e-05,2]
[347520479,1735899072742,-11950.80608496,9.987e-05,2]
[347520480,1735899072753,-2693.55783193,9.987e-05,2]
[347520481,1735899072762,-11950.80608496,9.987e-05,2]
[347520482,1735899072772,-200.0,9.987e-05,2]